bitfinex/quotes_SOLUSD_20260223
["timestamp","ask_amount","ask_price","bid_price","bid_amount"]
[1771878510359,5.55229267,78.01,77.969,2.79560346]
[1771878510579,5.55229267,77.99,77.962,2.79560346]
[1771878510878,2.71391357,77.989,77.962,2.79560346]
[1771878511185,3.69383402,78.012,77.945,32.07382357]
[1771878511186,2.71391357,77.969,77.945,2.79560346]
[1771878511562,2.71391357,77.969,77.93,5.65229267]
[1771878511563,2.71391357,77.978,77.951,2.79560346]
[1771878511779,2.71391357,77.986,77.951,2.79560346]
[1771878512080,5.55229267,77.98,77.951,2.79560346]
[1771878512383,2.71391357,77.986,77.951,2.79560346]
[1771878512588,2.71391357,77.979,77.951,2.79560346]
[1771878513574,2.71391357,77.979,77.953,2.79560346]
[1771878513778,2.71391357,77.977,77.953,2.79560346]
[1771878514482,2.71391357,77.977,77.951,2.79560346]
[1771878515579,2.71391357,77.977,77.943,12.82986127]
[1771878515580,2.71391357,77.967,77.936,2.79560346]
[1771878515781,2.71391357,77.967,77.937,2.79560346]
[1771878516292,2.71391357,77.967,77.936,12.83091142]
[1771878516293,2.71391357,77.974,77.941,2.79560346]
[1771878517597,1.45707231,77.958,77.943,2.79560346]
[1771878517772,2.71391357,77.974,77.944,2.79560346]
[1771878517968,12.82403005,77.979,77.944,2.79560346]
[1771878518173,15.53794362,77.979,77.944,2.79560346]
[1771878518493,2.71391357,77.979,77.944,2.79560346]
[1771878518673,2.71391357,77.986,77.961,2.79560346]
[1771878519179,2.71391357,77.993,77.961,2.79560346]
[1771878519797,2.71391357,77.993,77.963,2.79560346]
[1771878520095,2.71391357,77.979,77.941,2.79560346]
[1771878520272,0.6693,77.962,77.941,2.79560346]
[1771878520776,8.26620624,77.99,77.961,2.79560346]
[1771878520985,2.71391357,77.989,77.961,2.79560346]
[1771878521694,12.82248551,77.988,77.962,2.79560346]
[1771878521893,12.42792194,77.99,77.962,2.79560346]
[1771878521894,2.71391357,77.998,77.962,2.79560346]
[1771878522092,12.42792194,77.99,77.962,2.79560346]
[1771878522287,2.71391357,77.989,77.962,2.79560346]
[1771878524493,2.71391357,77.996,77.964,2.79560346]
[1771878524676,32.04625153,78.013,77.971,2.79560346]
[1771878524677,2.71391357,78.003,77.971,2.79560346]
[1771878525077,2.71391357,78.017,77.991,2.79560346]
[1771878527087,12.81788351,78.016,77.991,2.79560346]
[1771878528090,12.81788351,78.016,77.993,2.71957893]
[1771878528292,2.7235806,78.031,78.001,2.71957893]
[1771878529198,2.7235806,78.039,78.013,2.71957893]
[1771878530299,2.7235806,78.046,78.013,2.11720893]
[1771878530794,2.7235806,78.053,78.02,12.42792194]
[1771878531201,2.7235806,78.051,78.021,12.81706207]
[1771878532195,15.5358804,78.05,78.024,2.71957893]
[1771878532389,2.7235806,78.05,78.024,2.71957893]
[1771878532896,2.7235806,78.039,78.012,12.81842249]
[1771878533090,2.7235806,78.039,78.01,2.71957893]
[1771878534196,2.7235806,78.039,78.01,15.14750087]
[1771878534396,2.7235806,78.039,78.012,2.71957893]
[1771878535599,2.7235806,78.037,78.005,2.71957893]
[1771878535903,3.69383402,78.062,78.031,2.71957893]
[1771878535904,2.7235806,78.061,78.031,2.71957893]
[1771878536103,2.7235806,78.039,78.001,2.71957893]
[1771878536308,2.7235806,78.037,78.003,2.71957893]
[1771878537400,2.7235806,78.037,78.01,12.4098065]
[1771878537586,2.7235806,78.037,78.011,2.71957893]
[1771878537786,2.7235806,78.037,78.003,2.71957893]
[1771878538388,2.7235806,78.037,78.011,2.71957893]
[1771878538793,12.81459839,78.036,78.011,2.71957893]
[1771878539199,15.53817899,78.036,78.011,2.71957893]
[1771878540186,15.53817899,78.036,78.004,2.71957893]
[1771878540187,2.7235806,78.029,78.004,2.71957893]
[1771878540804,12.81459839,78.036,78.004,2.71957893]
[1771878541192,15.53817899,78.036,78.004,2.71957893]
[1771878541393,32.03135045,78.049,78.002,12.82013116]
[1771878541394,2.7235806,78.042,78.011,2.71957893]
[1771878541810,12.4098065,78.04,78.011,2.71957893]
[1771878542109,15.1333871,78.04,78.011,2.71957893]
[1771878542492,2.7235806,78.039,78.013,2.71957893]
[1771878544328,5.55984992,78.04,78.013,2.71957893]
[1771878544624,5.55984992,78.04,78.015,2.71957893]
[1771878545007,8.28343052,78.04,78.015,2.71957893]
[1771878545307,2.7235806,78.039,78.015,2.71957893]
[1771878545508,2.7235806,78.039,78.021,0.2]
[1771878546809,2.7235806,78.039,78.031,0.2]
[1771878548405,3.69383402,78.059,78.031,0.2]
[1771878548406,2.7235806,78.075,78.031,2.91957893]
[1771878548607,2.7235806,78.084,78.051,2.71957893]
[1771878548806,5.55984992,78.09,78.053,2.71957893]
[1771878548807,18.36570544,78.09,78.053,2.71957893]
[1771878549031,2.7235806,78.105,78.07,5.55984992]
[1771878549232,2.7235806,78.105,78.071,2.71957893]
[1771878549410,12.80348739,78.104,78.071,2.71957893]
[1771878549609,2.7235806,78.099,78.071,2.71957893]
[1771878549822,5.55984992,78.09,78.071,2.71957893]
[1771878550129,5.55984992,78.08,78.053,2.71957893]
[1771878550630,2.7235806,78.087,78.053,2.71957893]
[1771878551011,2.7235806,78.085,78.055,2.71957893]
[1771878551212,2.9235806,78.1,78.061,2.71957893]
[1771878551413,2.9235806,78.1,78.071,2.71957893]
[1771878551626,0.2,78.1,78.071,2.71957893]
[1771878552510,2.9235806,78.1,78.071,2.71957893]
[1771878552714,0.2,78.1,78.071,2.71957893]
[1771878552935,0.2,78.1,78.082,15.52662792]
[1771878553431,0.2,78.1,78.076,15.52747855]
[1771878553925,12.59004727,78.1,78.076,15.52747855]
[1771878554222,0.2,78.1,78.076,15.52747855]
[1771878554431,2.7235806,78.099,78.076,12.80789962]
[1771878554629,0.2,78.1,78.077,2.71957893]
[1771878555016,0.2,78.1,78.079,2.71957893]
[1771878555413,2.9235806,78.1,78.079,2.71957893]
[1771878556732,0.2,78.1,78.08,12.80737704]
[1771878556937,0.2,78.1,78.081,2.71957893]
[1771878557453,2.7235806,78.099,78.075,12.80812147]
[1771878557728,0.2,78.1,78.076,2.71957893]
[1771878559017,0.2,78.1,78.077,12.80786915]
[1771878559336,2.89363526,78.099,78.076,15.5275556]
[1771878559731,2.89363526,78.099,78.077,2.85316747]
[1771878560435,0.2,78.1,78.077,2.85316747]
[1771878560641,0.2,78.1,78.081,2.78695696]
[1771878560842,51.17276764,78.167,78.091,2.78695696]
[1771878560843,2.88571846,78.122,78.091,2.78695696]
[1771878561028,2.88571846,78.12,78.091,2.78695696]
[1771878561220,2.88571846,78.118,78.092,12.805409]
[1771878561422,2.88571846,78.109,78.076,0.2]
[1771878561623,2.88571846,78.109,78.086,0.2]
[1771878562619,2.88571846,78.109,78.096,0.2]
[1771878563131,2.88571846,78.109,78.086,0.2]
[1771878563942,2.88571846,78.107,78.086,0.2]
[1771878564531,2.88571846,78.099,78.086,0.2]
[1771878565023,2.88571846,78.099,78.076,0.2]
[1771878565229,2.88571846,78.089,78.076,0.2]
[1771878567129,2.88571846,78.095,78.076,0.2]
[1771878568830,2.88571846,78.095,78.076,13.00797364]
[1771878569352,2.88571846,78.095,78.076,0.2]
[1771878569848,2.88571846,78.107,78.078,2.78695696]
[1771878570037,12.80311371,78.106,78.078,2.78695696]
[1771878571325,15.68883217,78.106,78.078,2.78695696]
[1771878571535,15.68883217,78.106,78.08,2.78695696]
[1771878571745,2.88571846,78.105,78.08,2.78695696]
[1771878574643,2.88571846,78.099,78.08,2.78695696]
[1771878574845,2.88571846,78.099,78.077,12.80786915]
[1771878575051,12.80344156,78.104,78.066,12.8096098]
[1771878575052,2.88571846,78.089,78.066,12.8096098]
[1771878575254,2.88571846,78.089,78.067,2.78695696]
[1771878575551,2.88571846,78.099,78.067,2.78695696]
[1771878576732,2.88571846,78.097,78.069,2.78695696]
[1771878578828,2.88571846,78.089,78.062,2.78695696]
[1771878579232,5.5501533,78.09,78.062,2.78695696]
[1771878579435,2.88571846,78.095,78.062,2.78695696]
[1771878581451,2.88571846,78.095,78.063,44.8355815]
[1771878581664,2.88571846,78.095,78.064,2.78695696]
[1771878582157,5.5501533,78.1,78.064,2.78695696]
[1771878582158,15.69079951,78.094,78.064,2.78695696]
[1771878583266,2.88571846,78.093,78.066,2.78695696]
[1771878583562,2.88571846,78.093,78.072,2.98695696]
[1771878584362,2.88571846,78.093,78.082,0.2]
[1771878586968,8.43587176,78.1,78.082,2.98695696]
[1771878587148,2.88571846,78.1,78.083,15.59384194]
[1771878587341,2.88571846,78.106,78.084,2.78695696]
[1771878587544,2.88571846,78.112,78.086,2.78695696]
[1771878588647,2.74488789,78.118,78.086,2.78695696]
[1771878589965,2.74488789,78.118,78.082,0.2]
[1771878589966,2.74488789,78.118,78.088,2.85617102]
[1771878590469,3.69383402,78.143,78.082,0.2]
[1771878590470,2.74488789,78.109,78.082,0.2]
[1771878590644,2.74488789,78.099,78.082,0.2]
[1771878591375,44.80458798,78.117,78.082,0.2]
[1771878591376,5.5501533,78.09,78.082,0.2]
[1771878591560,2.74488789,78.094,78.083,12.80688498]
[1771878592353,2.74488789,78.094,78.082,0.2]
[1771878593369,2.74488789,78.099,78.082,0.2]
[1771878594169,2.74488789,78.099,78.083,12.80688498]
[1771878594366,2.74488789,78.099,78.079,12.80748064]
[1771878595967,2.74488789,78.099,78.071,2.85617102]
[1771878596181,2.74488789,78.089,78.061,2.85617102]
[1771878597174,2.74488789,78.089,78.063,2.85617102]
[1771878598252,2.74488789,78.089,78.079,0.2]
[1771878598452,12.62268832,78.094,78.079,0.2]
[1771878599165,12.62268832,78.094,78.089,0.2]
[1771878599366,12.80426125,78.099,78.079,0.2]
[1771878600166,5.55255176,78.09,78.079,0.2]
[1771878600366,12.80426125,78.099,78.039,2.85617102]
[1771878600367,2.74488789,78.079,78.039,2.85617102]
[1771878600569,2.74488789,78.079,78.038,44.84994489]
[1771878600570,5.55255176,78.11,78.071,2.85617102]
[1771878600744,2.74488789,78.129,78.091,2.85617102]
[1771878601064,2.74488789,78.129,78.09,5.55255176]
[1771878601065,2.74488789,78.129,78.101,2.85617102]
[1771878601269,2.74488789,78.135,78.103,2.85617102]
[1771878601447,2.74488789,78.142,78.103,2.85617102]
[1771878601653,8.29743965,78.15,78.111,2.85617102]
[1771878601862,2.74488789,78.142,78.111,2.85617102]
[1771878602258,0.2,78.16,78.121,2.85617102]
[1771878602259,2.74488789,78.148,78.121,2.85617102]
[1771878602454,2.74488789,78.155,78.121,2.85617102]
[1771878603159,2.74488789,78.149,78.121,2.85617102]
[1771878603356,2.74488789,78.147,78.121,2.85617102]
[1771878603771,0.2,78.16,78.141,2.85617102]
[1771878604367,18.54363519,78.18,78.125,5.36086188]
[1771878604368,2.74488789,78.179,78.151,2.85617102]
[1771878604767,2.74488789,78.179,78.122,44.80172037]
[1771878604768,2.74488789,78.179,78.142,2.85617102]
[1771878604962,50.52108185,78.18,78.135,2.85617102]
[1771878604963,2.74488789,78.159,78.135,2.85617102]
[1771878605159,2.74488789,78.159,78.128,2.85617102]
[1771878605361,2.74488789,78.139,78.112,2.85617102]
[1771878606379,5.55255176,78.14,78.112,2.85617102]
[1771878606559,2.74488789,78.146,78.112,2.85617102]
[1771878606760,5.55255176,78.14,78.112,2.85617102]
[1771878606960,2.74488789,78.139,78.112,2.85617102]
[1771878607468,2.74488789,78.139,78.113,12.80196638]
[1771878607779,25.17344802,78.15,78.121,2.85617102]
[1771878608078,2.74488789,78.149,78.121,2.85617102]
[1771878608979,31.98229842,78.169,78.131,2.85617102]
[1771878608980,2.74488789,78.164,78.131,2.85617102]
[1771878609159,2.74488789,78.162,78.131,2.85617102]
[1771878609356,15.87190739,78.183,78.151,2.85617102]
[1771878609580,15.87190739,78.183,78.124,3.69383402]
[1771878609581,12.78994209,78.187,78.161,2.85617102]
[1771878609879,2.74488789,78.183,78.152,2.85617102]
[1771878610081,2.74488789,78.178,78.147,12.79635515]
[1771878610384,0.2,78.18,78.161,2.85617102]
[1771878611070,0.2,78.19,78.17,12.37750404]
[1771878611276,0.2,78.19,78.171,2.85617102]
[1771878612973,0.2,78.19,78.16,12.37750404]
[1771878612974,2.74488789,78.188,78.158,12.79459556]
[1771878613781,2.74488789,78.186,78.158,2.85617102]
[1771878616876,2.74488789,78.186,78.16,12.37750404]
[1771878617367,2.74488789,78.186,78.16,15.23367506]
[1771878617682,2.74488789,78.186,78.161,2.85617102]
[1771878617987,2.86995858,78.184,78.154,2.83144256]
[1771878618790,2.86995858,78.184,78.16,12.37750404]
[1771878618969,12.79050432,78.183,78.16,12.37750404]
[1771878619174,2.86995858,78.182,78.155,15.62652924]
[1771878619377,2.86995858,78.189,78.161,2.83144256]
[1771878619892,2.86995858,78.188,78.161,2.83144256]
[1771878620972,2.86995858,78.188,78.163,2.64493169]
[1771878621592,12.78984997,78.187,78.163,2.64493169]
[1771878622777,2.6904881,78.186,78.163,2.64493169]
[1771878623177,2.6904881,78.186,78.165,2.64493169]
[1771878623379,2.6904881,78.189,78.165,2.64493169]
[1771878625190,2.6904881,78.189,78.166,12.79328608]
[1771878626001,2.6904881,78.199,78.166,12.79328608]
[1771878626195,2.6904881,78.189,78.161,12.79404102]
[1771878627098,2.6904881,78.189,78.157,2.64493169]
[1771878627408,2.6904881,78.177,78.151,15.4406411]
[1771878627991,2.6904881,78.177,78.114,3.69383402]
[1771878627992,2.6904881,78.169,78.142,2.64493169]
[1771878628189,2.6904881,78.169,78.135,2.64493169]
[1771878629101,2.6904881,78.169,78.141,2.64493169]
[1771878629290,2.6904881,78.177,78.153,2.64493169]
[1771878629808,15.48213771,78.176,78.153,2.64493169]
[1771878630116,2.6904881,78.186,78.161,2.64493169]
[1771878632210,12.79000861,78.187,78.162,12.79394078]
[1771878632404,12.79000861,78.187,78.163,2.64493169]
[1771878632605,0.2,78.2,78.181,2.64493169]
[1771878633908,5.53996481,78.19,78.166,2.64493169]
[1771878634202,8.23045291,78.19,78.166,2.64493169]
[1771878634610,12.78788731,78.199,78.166,2.64493169]
[1771878634611,2.6904881,78.198,78.166,2.64493169]
[1771878635121,5.73996481,78.2,78.156,31.98714463]
[1771878635122,0.2,78.2,78.171,2.64493169]
[1771878635290,0.2,78.2,78.181,2.64493169]
[1771878635914,0.2,78.2,78.183,2.64493169]
[1771878639199,0.2,78.2,78.182,44.76733774]
[1771878639200,0.2,78.2,78.185,2.64493169]
[1771878640497,2.6904881,78.218,78.185,2.64493169]
[1771878640694,2.6904881,78.243,78.21,5.53996481]
[1771878640896,5.73996481,78.25,78.221,2.64493169]
[1771878640897,0.2,78.25,78.221,2.64493169]
[1771878641097,0.2,78.25,78.195,5.36086188]
[1771878641098,6.68202154,78.246,78.223,2.64493169]
[1771878641292,2.6904881,78.245,78.218,12.78471216]
[1771878641511,2.6904881,78.239,78.218,12.78471216]
[1771878641905,2.6904881,78.248,78.219,2.64493169]
[1771878642820,0.2,78.25,78.231,2.64493169]
[1771878643205,0.2,78.25,78.233,2.64493169]
[1771878643714,2.8904881,78.26,78.234,2.64493169]
[1771878644600,8.43045291,78.26,78.234,2.64493169]
[1771878644798,2.8904881,78.26,78.234,2.64493169]
[1771878645520,2.8904881,78.26,78.236,2.64493169]
[1771878645816,2.6904881,78.277,78.251,2.64493169]
[1771878646021,1e-08,78.28,78.271,2.64493169]
[1771878646198,0.2,78.29,78.271,2.64493169]
[1771878646405,5.73996481,78.31,78.271,2.64493169]
[1771878646600,5.73996481,78.31,78.245,5.36086188]
[1771878646601,2.6904881,78.309,78.281,2.64493169]
[1771878646911,2.6904881,78.309,78.271,2.64493169]
[1771878647119,2.6904881,78.309,78.281,2.64493169]
[1771878647409,0.2,78.31,78.281,2.64493169]
[1771878647620,0.2,78.31,78.291,2.64493169]
[1771878648197,2.65731829,78.309,78.282,12.7743287]
[1771878648700,2.65731829,78.309,78.278,15.38176227]
[1771878649232,12.52384091,78.31,78.291,2.60682839]
[1771878649233,0.2,78.31,78.291,2.60682839]
[1771878649517,0.2,78.32,78.302,2.60682839]
[1771878649715,51.02688751,78.391,78.311,2.60682839]
[1771878649716,2.65731829,78.348,78.311,2.60682839]
[1771878649918,2.65731829,78.348,78.321,2.60682839]
[1771878650304,2.65731829,78.339,78.303,2.60682839]
[1771878650616,2.65731829,78.339,78.3,12.32384091]
[1771878650617,2.65731829,78.329,78.3,12.32384091]
[1771878650825,2.65731829,78.329,78.296,12.77192134]
[1771878651315,12.32384091,78.32,78.289,12.77314101]
[1771878651501,2.65731829,78.319,78.289,12.77314101]
[1771878651707,2.65731829,78.319,78.291,2.60682839]
[1771878652007,2.65731829,78.353,78.31,12.32384091]
[1771878652310,2.65731829,78.349,78.32,12.32384091]
[1771878653419,2.65731829,78.347,78.318,15.37516104]
[1771878653624,2.65731829,78.347,78.32,12.32384091]
[1771878655605,2.65731829,78.347,78.321,12.76796772]
[1771878656117,2.65731829,78.345,78.319,2.60682839]
[1771878656312,12.76389349,78.346,78.311,2.60682839]
[1771878656313,2.65731829,78.339,78.311,2.60682839]
[1771878656522,2.65731829,78.347,78.312,2.60682839]
[1771878656815,2.65731829,78.346,78.312,2.60682839]
[1771878657218,2.65731829,78.346,78.32,12.32384091]
[1771878657709,2.65731829,78.346,78.312,2.60682839]
[1771878657910,2.65731829,78.339,78.311,12.76959814]
[1771878658423,2.65731829,78.329,78.306,12.77037983]
[1771878658826,2.65731829,78.329,78.304,2.60682839]
[1771878659013,2.65731829,78.329,78.301,12.77113018]
[1771878659521,2.65731829,78.329,78.302,2.60682839]
[1771878659726,2.65731829,78.329,78.301,12.77113018]
[1771878659925,2.65731829,78.317,78.281,2.60682839]
[1771878660227,2.65731829,78.309,78.28,12.77461638]
[1771878660422,2.65731829,78.309,78.276,12.77529001]
[1771878660608,2.65731829,78.309,78.277,2.60682839]
[1771878660923,14.97585299,78.3,78.277,2.60682839]
[1771878661223,2.65731829,78.3,78.277,2.60682839]
[1771878662117,2.65731829,78.3,78.278,12.77498147]
[1771878662298,2.65731829,78.298,78.27,12.3185347]
[1771878662502,2.65731829,78.296,78.261,2.60682839]
[1771878662715,2.65731829,78.309,78.281,2.60682839]
[1771878662913,2.65731829,78.289,78.261,2.60682839]
[1771878664122,2.65731829,78.297,78.261,2.60682839]
[1771878664326,2.65731829,78.295,78.263,2.60682839]
[1771878666718,2.65731829,78.295,78.265,2.60682839]
[1771878667127,2.65731829,78.289,78.265,2.60682839]
[1771878667527,12.7723708,78.294,78.241,12.78102273]
[1771878667528,2.65731829,78.279,78.241,12.78102273]
[1771878667831,2.65731829,78.269,78.242,2.60682839]
[1771878668130,2.65731829,78.259,78.221,2.60682839]
[1771878668423,12.3185347,78.25,78.221,2.60682839]
[1771878669123,12.7793894,78.251,78.223,2.60682839]
[1771878669311,12.7793894,78.251,78.216,2.60682839]
[1771878669312,14.97585299,78.24,78.216,2.60682839]
[1771878669506,14.97585299,78.24,78.217,12.78494444]
[1771878669705,14.97585299,78.24,78.218,2.60682839]
[1771878669907,2.65731829,78.24,78.218,2.60682839]
[1771878671233,14.97585299,78.24,78.218,2.60682839]
[1771878671532,2.65731829,78.248,78.219,2.60682839]
[1771878671734,12.3185347,78.25,78.221,2.60682839]
[1771878671938,12.77906677,78.253,78.221,2.60682839]
[1771878671939,2.65731829,78.252,78.221,2.60682839]
[1771878672115,14.97585299,78.25,78.221,2.60682839]
[1771878673026,2.65731829,78.265,78.231,2.60682839]
[1771878673227,2.65731829,78.265,78.233,2.60682839]
[1771878673531,2.65731829,78.265,78.241,2.60682839]
[1771878673733,12.77726668,78.264,78.241,2.60682839]
[1771878674427,2.65731829,78.263,78.233,2.60682839]
[1771878674619,2.65731829,78.259,78.233,2.60682839]
[1771878675510,2.65731829,78.258,78.234,12.78216632]
[1771878675937,2.65731829,78.258,78.234,15.38899471]
[1771878676112,2.65731829,78.258,78.235,2.60682839]
[1771878677215,31.93939382,78.274,78.235,2.60682839]
[1771878677216,2.65731829,78.268,78.235,2.60682839]
[1771878679015,12.3185347,78.27,78.241,2.5784558]
[1771878679220,2.61911005,78.268,78.241,2.5784558]
[1771878680930,3.69383402,78.283,78.225,31.95897564]
[1771878680931,12.3185347,78.28,78.251,2.75632668]
[1771878681137,2.83741684,78.279,78.251,2.75632668]
[1771878683014,2.83741684,78.277,78.243,2.75632668]
[1771878683634,2.83741684,78.277,78.251,2.75632668]
[1771878683828,2.83741684,78.286,78.251,2.75632668]
[1771878684026,12.3185347,78.29,78.261,2.75632668]
[1771878684538,12.77220767,78.295,78.261,2.75632668]
[1771878684735,15.15595154,78.3,78.271,2.75632668]
[1771878684918,2.83741684,78.299,78.272,12.77596075]
[1771878685119,2.83741684,78.299,78.273,2.75632668]
[1771878685736,2.83741684,78.299,78.27,12.3185347]
[1771878685737,2.83741684,78.298,78.27,12.3185347]
[1771878685928,2.83741684,78.298,78.27,12.77613495]
[1771878686240,2.83741684,78.298,78.271,2.75632668]
[1771878686633,2.83741684,78.298,78.27,12.77613495]
[1771878686634,2.83741684,78.289,78.26,2.75632668]
[1771878686836,2.83741684,78.289,78.26,15.5342097]
[1771878687031,2.83741684,78.287,78.26,2.75632668]
[1771878687340,12.3185347,78.28,78.254,2.75632668]
[1771878687646,2.83741684,78.279,78.254,2.75632668]
[1771878688542,2.83741684,78.279,78.255,2.75632668]
[1771878690741,2.83741684,78.279,78.257,2.75632668]
[1771878691131,12.3185347,78.29,78.257,2.75632668]
[1771878691132,15.61124402,78.286,78.257,2.75632668]
[1771878691346,2.83741684,78.285,78.257,2.75632668]
[1771878692538,2.83741684,78.285,78.256,12.77857288]
[1771878692539,2.83741684,78.289,78.263,2.75632668]
[1771878693526,12.3185347,78.31,78.28,12.3185347]
[1771878693725,12.76969542,78.311,78.281,2.75632668]
[1771878693925,2.83741684,78.32,78.291,2.75632668]
[1771878694122,12.7664553,78.331,78.301,2.75632668]
[1771878694525,12.3185347,78.33,78.301,2.75632668]
[1771878694947,15.60387214,78.331,78.303,2.75632668]
[1771878695328,12.3185347,78.33,78.303,2.75632668]
[1771878696058,2.83741684,78.319,78.285,2.75632668]
[1771878698234,15.15595154,78.31,78.285,2.75632668]
[1771878699126,2.83741684,78.309,78.278,15.53124321]
[1771878699452,2.83741684,78.309,78.279,2.75632668]
[1771878699634,2.83741684,78.309,78.279,12.77481827]
[1771878699839,2.83741684,78.309,78.28,2.75632668]
[1771878700040,2.83741684,78.309,78.281,2.75632668]
[1771878702057,2.83741684,78.309,78.283,2.75632668]
[1771878702254,12.77008734,78.308,78.283,2.75632668]
[1771878704353,2.83741684,78.349,78.303,2.75632668]
[1771878704659,2.83741684,78.359,78.33,12.3185347]
[1771878704848,2.83741684,78.369,78.341,2.75632668]
[1771878705156,2.83741684,78.377,78.36,12.3185347]
[1771878705532,0.1,78.38,78.361,2.75632668]
[1771878705741,0.1,78.39,78.371,2.75632668]
[1771878705956,0.1,78.39,78.355,5.36086188]
[1771878705957,0.1,78.39,78.381,2.75632668]
[1771878706347,0.1,78.39,78.383,2.75632668]
[1771878706547,0.1,78.39,78.37,2.75632668]
[1771878706747,0.1,78.39,78.36,15.07486138]
[1771878706748,2.93741684,78.39,78.36,15.07486138]
[1771878707064,2.83741684,78.389,78.355,2.75632668]
[1771878707564,2.83741684,78.389,78.356,2.75632668]
[1771878708368,12.4185347,78.39,78.348,12.76343504]
[1771878708369,2.673636,78.379,78.348,12.76343504]
[1771878708944,2.673636,78.379,78.34,14.8689128]
[1771878708951,2.673636,78.369,78.341,15.31508623]
[1771878709146,2.673636,78.369,78.342,2.5503781]
[1771878710541,12.76031033,78.368,78.342,2.5503781]
[1771878710963,2.673636,78.369,78.344,2.5503781]
[1771878711171,2.673636,78.376,78.35,12.3185347]
[1771878711665,2.673636,78.376,78.351,2.5503781]
[1771878712856,12.75917065,78.375,78.351,2.5503781]
[1771878713052,0.1,78.39,78.332,31.91515296]
[1771878713053,7.18153713,78.397,78.37,12.3185347]
[1771878713259,12.3185347,78.42,78.356,5.36086188]
[1771878713571,12.3185347,78.42,78.35,12.3185347]
[1771878713572,2.673636,78.409,78.37,14.8689128]
[1771878713747,2.673636,78.409,78.371,2.5503781]
[1771878713949,2.673636,78.409,78.38,12.3185347]
[1771878714245,0.2,78.43,78.404,2.5503781]
[1771878714246,1e-08,78.43,78.404,2.5503781]
[1771878714552,1e-08,78.43,78.421,2.5503781]
[1771878715533,1e-08,78.43,78.423,2.5503781]
[1771878716755,1e-08,78.43,78.416,12.75248743]
[1771878716948,2.873636,78.46,78.421,2.5503781]
[1771878717154,2.873636,78.46,78.43,12.3185347]
[1771878717541,2.873636,78.46,78.415,5.36086188]
[1771878717542,2.673636,78.45,78.421,2.5503781]
[1771878718143,2.673636,78.45,78.43,12.3185347]
[1771878718842,2.673636,78.45,78.421,2.5503781]
[1771878719253,2.673636,78.448,78.42,12.3185347]
[1771878719456,2.673636,78.448,78.421,12.75168641]
[1771878720346,2.673636,78.448,78.415,12.75259609]
[1771878720861,12.3185347,78.43,78.395,2.5503781]
[1771878721061,12.74713508,78.449,78.39,12.3185347]
[1771878721062,2.673636,78.419,78.39,12.3185347]
[1771878721275,2.673636,78.419,78.391,12.75656644]
[1771878721479,2.673636,78.417,78.39,12.28926498]
[1771878721649,2.673636,78.417,78.381,2.5503781]
[1771878721852,2.673636,78.417,78.38,25.047585]
[1771878722264,2.673636,78.409,78.37,12.28926498]
[1771878722586,2.673636,78.409,78.371,2.5503781]
[1771878723047,2.673636,78.409,78.38,12.28926498]
[1771878723970,2.673636,78.407,78.372,12.75965906]
[1771878724557,2.673636,78.389,78.36,12.28926498]
[1771878724760,2.673636,78.379,78.35,14.83964308]
[1771878725067,2.673636,78.407,78.371,2.5503781]
[1771878725266,2.673636,78.407,78.38,12.28926498]
[1771878725451,2.673636,78.407,78.371,2.5503781]
[1771878725773,2.673636,78.407,78.38,12.28926498]
[1771878726167,2.673636,78.405,78.38,12.28926498]
[1771878726787,2.673636,78.405,78.377,12.75871912]
[1771878726952,2.673636,78.399,78.372,12.75953412]
[1771878727357,2.673636,78.399,78.371,2.5503781]
[1771878727569,2.673636,78.399,78.363,2.5503781]
[1771878727883,44.63944084,78.406,78.35,12.76311526]
[1771878727884,2.673636,78.379,78.35,12.76311526]
[1771878728167,2.673636,78.377,78.346,15.31418035]
[1771878728959,2.673636,78.377,78.34,12.28926498]
[1771878728960,12.28926498,78.36,78.331,12.76621808]
[1771878729162,44.65538798,78.378,78.332,2.5503781]
[1771878729163,2.673636,78.359,78.332,2.5503781]
[1771878729772,2.673636,78.368,78.341,2.5503781]
[1771878730160,2.673636,78.377,78.343,2.5503781]
[1771878730677,2.673636,78.369,78.334,2.5503781]
[1771878731181,2.673636,78.359,78.325,2.5503781]
[1771878731483,12.28926498,78.34,78.313,2.5503781]
[1771878731661,12.28926498,78.34,78.295,5.36086188]
[1771878731662,2.673636,78.339,78.304,15.32103674]
[1771878731862,2.673636,78.339,78.311,2.5503781]
[1771878732383,2.673636,78.339,78.295,5.36086188]
[1771878732384,12.76200146,78.358,78.33,12.28926498]
[1771878733484,2.673636,78.359,78.33,14.83964308]
[1771878733672,2.673636,78.359,78.331,2.5503781]
[1771878733868,15.43541192,78.359,78.331,2.5503781]
[1771878734070,2.673636,78.358,78.331,2.5503781]
[1771878734384,2.673636,78.358,78.332,12.76617474]
[1771878734578,12.76210166,78.357,78.331,2.5503781]
[1771878734883,2.673636,78.357,78.332,12.76617474]
[1771878735582,2.673636,78.357,78.331,2.5503781]